Workbook

Sheet Belegverwaltung
B2: Belegmappe zu den Lerneinheiten
B3: Rabatte und Rechnungsausgleich verbuchen
B5: Belege | D5: Unternehmensstammdaten
B7: Zum Ausdrucken und Bearbeiten der Belege klicken Sie auf den entsprechenden Button. | D7: In den farbig hinterlegten Feldern können Sie die Unternehmensstammdaten individuell Ihren Bedürfnissen anpassen.
B9: Kontoauszug einzeilig Musterbank Alpha | D9: =+intern_Datenblatt!A7 -> Anrede | E9: Firma
D11: =+intern_Datenblatt!A29 -> Firma | E11: Ira Dittmann e.U.
B13: EDV-Handel | D13: =+intern_Datenblatt!A27 -> Geschäftsbezeichnung | E13: Musikhaus
D15: =+intern_Datenblatt!A64 -> Straße | E15: Bahngasse 25
B17: EDV-Handel Rabatt | D17: =+intern_Datenblatt!A51 -> PLZ und Ort | E17: 2700 Wiener Neustadt
D19: =+intern_Datenblatt!A66 -> Telefon | E19: +43 2622 24 163
B21: Ausgangsrechnung oder Rabattgutschrift | D21: =+intern_Datenblatt!A25 -> Fax | E21: +43 2622 24 163 - 49
D23: =+intern_Datenblatt!A73 -> Website | E23: www.musikhaus.ac.at
B25: Tageslosung und Kontoauszug Musterbank Beta | D25: =+intern_Datenblatt!A67 -> UID-Nummer | E25: ATU15354408
D27: =+intern_Datenblatt!A10 -> Bank | E27: BKS Bank AG
B29: Ausgangsrechnung | D29: =+intern_Datenblatt!A18 -> BIC | E29: BFKKAT2K
D31: =intern_Datenblatt!A33 -> IBAN | E31: AT761700000180024810
B33: Kontoauszug & Zahlungseingang BKS Bank
B37: Kassenbon mit Rabatt & Skonto | E37: Logoübersicht
E41: Hilfe
E45: Kontakt & Impressum

Sheet Kontoauszug einzeilig MB Alpha
K1: =intern_Datenblatt!B1 -> Verändern Sie hier den Beleg: | P1: =intern_Datenblatt!B3 -> Zurück zur Belegverwaltung
C3: =+IF(M3="","",M3) -> Ira Dittmann e.U. | E3: Buchungen berücksichtigt | G3: Kontoauszug | H3: =+IF(M11="","",M11) -> 9/1 | K3: =intern_Datenblatt!A29 -> Firma | M3: =+Belegverwaltung!E11 -> Ira Dittmann e.U.
C4: =+IF(M4="","",M4) -> Bahngasse 25 | E4: bis Datum | F4: IBAN | G4: =intern_Datenblatt!A74 -> Währung | H4: BIC | K4: =+intern_Datenblatt!A64 -> Straße | M4: =+Belegverwaltung!E15 -> Bahngasse 25
C5: =+IF(M5="","",M5) -> 2700 Wiener Neustadt | E5: =IF(M9="","",M9) -> 2020-03-31 | F5: =+IF(M6="","",M6) -> AT431921000001008524 | G5: =+IF(M10="","",M10) -> EUR | H5: =+IF(M7="","",M7) -> INGDAT21 | K5: =+intern_Datenblatt!A51 -> PLZ und Ort | M5: =+Belegverwaltung!E17 -> 2700 Wiener Neustadt | P5: =intern_Datenblatt!B4 -> Beleg kopieren
C6: Bg.Tag | D6: Wert | E6: Buchungstext | H6: Betrag | K6: =+intern_Datenblatt!A33 -> IBAN | M6: AT431921000001008524
C7: =+IF(K18="","",K18) -> 2020-03-31 | D7: =IF(L18="","",+L18) -> 2020-03-31 | E7: =IF(M18="","",M18) -> Sollzinsen | H7: =IF(N18="","",+N18) -> -14.87 | K7: =intern_Datenblatt!A18 -> BIC | M7: INGDAT21
C8: 2020-03-31 | D8: =+IF(L19="","",L19) -> 2020-03-31 | E8: =IF(M19="","",M19) -> Habenzinsen | H8: 9.16 | K8: Bank | M8: Alphabank Österreich
C9: 2020-03-31 | D9: =+IF(L20="","",L20) -> 2020-03-31 | E9: =+IF(M20="","",M20) -> Kapitalertragsteuer | H9: -2.29 | K9: =+intern_Datenblatt!A20 -> Datum | M9: =DATE(YEAR(TODAY()),3,31) -> 2020-03-31
C10: 2020-03-31 | D10: =+IF(L21="","",L21) -> 2020-03-31 | E10: =+IF(M21="","",M21) -> Buchungs- und Abschlusskosten | H10: -19.9 | K10: =intern_Datenblatt!A74 -> Währung | M10: EUR
C11: 2020-03-31 | D11: =+IF(L22="","",L22) -> 2020-03-31 | E11: =+IF(M22="","",M22) -> Kontoführungsentgelt | H11: -14.9 | K11: Auszugsnummer | M11: 9/1
D12: =+IF(L23="","",L23) ->  | E12: =+IF(M23="","",M23) ->  | K12: alter Kontostand | M12: 10256.31
K13: Infotext Zeile 1 | M13: Jetzt können Sie Bankgeschäfte auch per Telefon erledigen.
F14: Alter Kontostand | G14: Neuer Kontostand | K14: Infotext Zeile 2 | M14: Kostenlos von 7:00 bis 19:00 - Infos +43 1 512 33 97-01
F15: =IF(M12="","",M12) -> 10256.31 | H15: =IF((M12+SUM(H7:H13))=0,"",(M12+SUM(H7:H13))) -> 10213.51
C17: =+IF(M13="","",M13) -> Jetzt können Sie Bankgeschäfte auch per Telefon erledigen. | K17: Bg.Tag | L17: Wert | M17: Buchungstext | N17: Betrag
C18: =+IF(M14="","",M14) -> Kostenlos von 7:00 bis 19:00 - Infos +43 1 512 33 97-01 | K18: =DATE(YEAR(TODAY()),3,31) -> 2020-03-31 | L18: =IF(K18="","",K18) -> 2020-03-31 | M18: Sollzinsen | N18: -14.87
F19: =IF(M8="","",M8) -> Alphabank Österreich | K19: =DATE(YEAR(TODAY()),3,31) -> 2020-03-31 | L19: =IF(K19="","",K19) -> 2020-03-31 | M19: Habenzinsen | N19: 9.16
K20: =DATE(YEAR(TODAY()),3,31) -> 2020-03-31 | L20: 2020-03-31 | M20: Kapitalertragsteuer | N20: -2.29
K21: =DATE(YEAR(TODAY()),3,31) -> 2020-03-31 | L21: 2020-03-31 | M21: Buchungs- und Abschlusskosten | N21: -19.9
K22: =DATE(YEAR(TODAY()),3,31) -> 2020-03-31 | L22: 2020-03-31 | M22: Kontoführungsentgelt | N22: -14.9

Sheet EDV-Handel
M1: =intern_Datenblatt!B1 -> Verändern Sie hier den Beleg: | R1: =intern_Datenblatt!B3 -> Zurück zur Belegverwaltung
D3: =IF(O3="","",O3) -> BTC Bürotechnik | J3: ** KUNDENBELEG ** | M3: =intern_Datenblatt!A62 -> Slogan | O3: BTC Bürotechnik | T3: =O3 -> BTC Bürotechnik
J4: =IF(O4="","",O4) -> BTC Handels- und Service GmbH | M4: =intern_Datenblatt!A29 -> Firma | O4: BTC Handels- und Service GmbH | T4: =O4 -> BTC Handels- und Service GmbH
C5: =IF(O4="","",O4) -> BTC Handels- und Service GmbH | J5: =IF(O5="","",O5) -> Steinschneidergasse 25 | M5: =intern_Datenblatt!A64 -> Straße | O5: Steinschneidergasse 25 | R5: =intern_Datenblatt!B4 -> Beleg kopieren | T5: Steinschneidergasse 25
J6: =IF(O6="","",O6) -> 2700 Wiener Neustadt | M6: =intern_Datenblatt!A51 -> PLZ und Ort | O6: 2700 Wiener Neustadt | T6: 2700 Wiener Neustadt
M7: =intern_Datenblatt!A66 -> Telefon | O7: +43 2622 78 930 | T7: =O10 -> Firma
J8: VERKAUF | M8: =intern_Datenblatt!A73 -> Website | O8: www.btc.at | T8: =O11 -> Ira Dittmann e.U.
J9: =IF(O15="","",O15) -> 2020-04-01 | K9: =NOW() -> 44005.67911 | M9: =intern_Datenblatt!A22 -> E-Mail | O9: office@btc.at | T9: =O12 -> Bahngasse 25
C10: =IF(O10="","",O10) -> Firma | F10: RECHNUNG | J10: Terminal-ID: | K10: =RANDBETWEEN(100000,999999) -> 503288 | M10: =intern_Datenblatt!A7 -> Anrede | O10: =Belegverwaltung!E9 -> Firma | T10: =O13 -> 2700 Wiener Neustadt
C11: =IF(O11="","",O11) -> Ira Dittmann e.U. | F11: =IF(O15="","","Datum") -> Datum | G11: =IF(O15="","",O15) -> 2020-04-01 | J11: VU-Nr: | K11: =RANDBETWEEN(1000000,9999999) -> 7190244 | M11: =intern_Datenblatt!A29 -> Firma | O11: =Belegverwaltung!E11 -> Ira Dittmann e.U. | T11: =O14 -> ATU15354408
C12: =IF(O12="","",O12) -> Bahngasse 25 | F12: =IF(O16="","","Re-Nr.") -> Re-Nr. | G12: =IF(O16="","",O16) -> RE_10268 | J12: Beleg-Nr: | K12: =RANDBETWEEN(10000,99999) -> 56083 | M12: =intern_Datenblatt!A64 -> Straße | O12: =Belegverwaltung!E15 -> Bahngasse 25
C13: =IF(O13="","",O13) -> 2700 Wiener Neustadt | F13: =IF(O14="","","Ihre UID") -> Ihre UID | G13: =IF(O14="","",O14) -> ATU15354408 | J13: =IF(O33="","",O33) -> VISA | M13: =intern_Datenblatt!A51 -> PLZ und Ort | O13: =+Belegverwaltung!E17 -> 2700 Wiener Neustadt | T13: =O16 -> RE_10268
J14: AID: | K14: =+CONCATENATE("A000000",RANDBETWEEN(10000,99999)) -> A00000050417 | M14: =intern_Datenblatt!A68 -> UID-Nr. | O14: =Belegverwaltung!E25 -> ATU15354408
J15: Crypto: | K15: =RANDBETWEEN(10000000000,99999999999) -> 63210253429 | M15: =intern_Datenblatt!A57 -> Rechnungsdatum | O15: =DATE(YEAR(TODAY()),4,1) -> 2020-04-01 | R15: =IF(O32="","",O15) -> 2020-04-01
C16: Wir bedanken uns für die Beauftragung und erlauben uns, wie folgt in Rechnung zu stellen: | J16: Nr: | K16: =+CONCATENATE("*********",RANDBETWEEN(1000,9999)) -> *********8947 | M16: =intern_Datenblatt!A58 -> Rechnungsnummer | O16: RE_10268
J17: Ablaufdatum: | K17: =O15+101 -> 2020-07-11 | M17: =+intern_Datenblatt!A28 -> Logoauswahl | O17: Logo09
J18: SEQ: | K18: 001
C19: Pos | D19: Bezeichung | E19: Menge | F19: Preis € | G19: Gesamt € | J19: BEZAHLT
C20: =IF(M21="","",M21) -> 1 | D20: =IF(O21="","",O21) -> Acer Aspire5 15,6 Zoll Full-HD | E20: =IF(N21="","",N21) -> 1 | F20: =IF(P21="","",P21) -> 499 | G20: =IF(N21="","",N21*P21) -> 499 | J20: GEN.NR.: | K20: =RANDBETWEEN(100000,999999) -> 568730 | M20: =intern_Datenblatt!A53 -> Position | N20: =intern_Datenblatt!A42 -> Menge | O20: =intern_Datenblatt!A17 -> Bezeichnung | P20: =intern_Datenblatt!A46 -> Netto/EH
C21: =IF(M22="","",M22) -> 2 | D21: =IF(O22="","",O22) -> Brother MFC-J533DW 4in1 Drucker | E21: =IF(N22="","",N22) -> 1 | F21: =IF(P22="","",P22) -> 124.99 | G21: =IF(N22="","",N22*P22) -> 124.99 | J21: Betrag: | K21: =IF(G30="","",G30) -> 751.22 | M21: 1 | N21: 1 | O21: Acer Aspire5 15,6 Zoll Full-HD | P21: 499
C22: =IF(M23="","",M23) -> 3 | D22: =IF(O23="","",O23) -> Logitech M185 Maus schnurlos | E22: =IF(N23="","",N23) -> 1 | F22: =IF(P23="","",P23) -> 9.99 | G22: =IF(N23="","",N23*P23) -> 9.99 | M22: 2 | N22: 1 | O22: Brother MFC-J533DW 4in1 Drucker | P22: 124.99
C23: =IF(M24="","",M24) -> 4 | D23: =IF(O24="","",O24) -> Logitech MK270 Combo Tastatur | E23: =IF(N24="","",N24) -> 1 | F23: =IF(P24="","",P24) -> 24.99 | G23: =IF(N24="","",N24*P24) -> 24.99 | J23: VIELEN DANK! | M23: 3 | N23: 1 | O23: Logitech M185 Maus schnurlos | P23: 9.99
C24: =IF(M25="","",M25) ->  | D24: =IF(O25="","",O25) ->  | E24: =IF(N25="","",N25) ->  | F24: =IF(P25="","",P25) ->  | G24: =IF(N25="","",N25*P25) ->  | M24: 4 | N24: 1 | O24: Logitech MK270 Combo Tastatur | P24: 24.99
E26: =IF(SUM(G20:G24)=0,"","Zwischensumme") -> Zwischensumme | G26: =IF(SUM(G20:G24)=0,"",SUM(G20:G24)) -> 658.97
E27: =IF(O28="","",O28) -> Stammkundenrabatt | G27: =IF(P21="","",IF(O29="","",ROUND(G26*O29/-100,2))) -> -32.95
E28: =IF(SUM(G20:G24)=0,"","Nettobetrag") -> Nettobetrag | G28: =(ROUND(SUM(G26:G27),2)) -> 626.02 | M28: =intern_Datenblatt!A78 -> Rabattart | O28: Stammkundenrabatt | T28: =O7 -> +43 2622 78 930
E29: =IF(SUM(G20:G24)=0,"","zzgl. 20 % USt") -> zzgl. 20 % USt | G29: =(ROUND(G28*0.2,2)) -> 125.2 | M29: =intern_Datenblatt!A79 -> Rabatt Prozentsatz | O29: 5 | T29: =O8 -> www.btc.at
C30: Summe total | G30: =IF(G26="","",SUM(G28:G29)) -> 751.22 | M30: =+intern_Datenblatt!A76 -> Zahlungskonditionen | O30: prompt fällig | T30: =O9 -> office@btc.at
T31: =O34 -> Wiener Neustädter Sparkasse
C32: =IF(O30="","",M30) -> Zahlungskonditionen | F32: =IF(O33="auf ziel","",CONCATENATE("Zahlung - ",O33," - Kassa: 00",RANDBETWEEN(1,5))) -> Zahlung - VISA - Kassa: 001 | M32: =intern_Datenblatt!A81 -> Stempel | O32: Ware ausgefolgt | R32: =IF(O32="","",UPPER(O32)) -> WARE AUSGEFOLGT | T32: AT872026700600007052
C33: =IF(O30="","",O30) -> prompt fällig | F33: =IF(O33="auf ziel","",K9) -> 44005.67911 | M33: =intern_Datenblatt!A75 -> Auswahl Zahlungsart | O33: VISA | R33: =IF(OR(O33="BAR",O33="auf ziel"),"B2:H48","B2:K48") -> B2:K48 | S33: R32 definiert den variablen Druckbereich | T33: WINSATWNXXX
M34: =intern_Datenblatt!A10 -> Bank | O34: Wiener Neustädter Sparkasse | R34: =IF(O33="AUF ZIEL","NEIN","JA") -> JA | T34: ATU20457001
M35: =intern_Datenblatt!A33 -> IBAN | O35: AT872026700600007052 | T35: FN 228850h
M36: =intern_Datenblatt!A18 -> BIC | O36: WINSATWNXXX | T36: LG Wiener Neustadt
M37: =intern_Datenblatt!A67 -> UID-Nummer | O37: ATU20457001
C38: =IF(O4="","",CONCATENATE("Die Ware bleibt bis zur vollständigen Bezahlung im Eigentum der ",O4,". Umtausch und Rückgabe sind für diese Artikel ausgeschlossen.")) -> Die Ware bleibt bis zur vollständigen Bezahlung im Eigentum der BTC Handels- und Service GmbH. Umtausch und Rückgabe sind für diese Artikel ausgeschlossen. | M38: =intern_Datenblatt!A26 -> FB-Nummer | O38: FN 228850h
M39: =intern_Datenblatt!A30 -> Gerichtsstand | O39: LG Wiener Neustadt
C40: Rechnungsdatum = Lieferdatum
C42: =IF(O4="","",O4) -> BTC Handels- und Service GmbH | E42: =IF(O34="","",O34) -> Wiener Neustädter Sparkasse
C43: Steinschneidergasse 25 | E43: AT872026700600007052
C44: 2700 Wiener Neustadt | E44: WINSATWNXXX
C45: +43 2622 78 930 | E45: ATU20457001
C46: www.btc.at | E46: FN 228850h
C47: office@btc.at | E47: LG Wiener Neustadt

Sheet EDV-Handel Rabatt
J1: =intern_Datenblatt!B1 -> Verändern Sie hier den Beleg: | O1: =intern_Datenblatt!B3 -> Zurück zur Belegverwaltung
D3: =IF(L3="","",L3) -> BTC Bürotechnik | J3: =intern_Datenblatt!A62 -> Slogan | L3: ='EDV-Handel'!T3 -> BTC Bürotechnik | Q3: =IF($L$3="","",L3) -> BTC Bürotechnik
J4: =intern_Datenblatt!A29 -> Firma | L4: ='EDV-Handel'!T4 -> BTC Handels- und Service GmbH
C5: =IF(L4="","",L4) -> BTC Handels- und Service GmbH | J5: =intern_Datenblatt!A64 -> Straße | L5: ='EDV-Handel'!T5 -> Steinschneidergasse 25 | O5: =intern_Datenblatt!B4 -> Beleg kopieren
J6: =intern_Datenblatt!A51 -> PLZ und Ort | L6: ='EDV-Handel'!T6 -> 2700 Wiener Neustadt
J7: =intern_Datenblatt!A7 -> Anrede | L7: ='EDV-Handel'!T7 -> Firma
J8: =intern_Datenblatt!A29 -> Firma | L8: ='EDV-Handel'!T8 -> Ira Dittmann e.U.
J9: =intern_Datenblatt!A64 -> Straße | L9: ='EDV-Handel'!T9 -> Bahngasse 25
C10: =IF(L7="","",L7) -> Firma | F10: GUTSCHRIFT | J10: =intern_Datenblatt!A51 -> PLZ und Ort | L10: ='EDV-Handel'!T10 -> 2700 Wiener Neustadt
C11: =IF(L8="","",L8) -> Ira Dittmann e.U. | F11: =IF(L12="","","Datum") -> Datum | G11: =IF(L12="","",L12) -> 2020-04-08 | J11: =intern_Datenblatt!A68 -> UID-Nr. | L11: ='EDV-Handel'!T11 -> ATU15354408
C12: =IF(L9="","",L9) -> Bahngasse 25 | F12: =IF(L13="","","zu Re-Nr.") -> zu Re-Nr. | G12: =IF(L13="","",L13) -> RE_10268 | J12: =intern_Datenblatt!A57 -> Rechnungsdatum | L12: =DATE(YEAR(TODAY()),4,8) -> 2020-04-08
C13: =IF(L10="","",L10) -> 2700 Wiener Neustadt | F13: =IF(L11="","","Ihre UID") -> Ihre UID | G13: =IF(L11="","",L11) -> ATU15354408 | J13: =intern_Datenblatt!A58 -> Rechnungsnummer | L13: ='EDV-Handel'!T13 -> RE_10268
J14: =intern_Datenblatt!A80 -> Text | L14: Wie heute telefonisch vereinbart, gewähren wir Ihnen nachträglich einen Rabatt von 15 %.
C16: =IF(L14="","",L14) -> Wie heute telefonisch vereinbart, gewähren wir Ihnen nachträglich einen Rabatt von 15 %.
J17: =intern_Datenblatt!A79 -> Rabatt Prozentsatz | L17: 15
J18: =intern_Datenblatt!A66 -> Telefon | L18: =+'EDV-Handel'!T28 -> +43 2622 78 930
G19: Gesamt € | J19: =intern_Datenblatt!A73 -> Website | L19: =+'EDV-Handel'!T29 -> www.btc.at
D20: =IF(L17="","",CONCATENATE(L17," %")) -> 15 % | E20: =IF(L17="","","von") -> von | F20: =IF(L17="","",SUM('EDV-Handel'!G26:G27)) -> 626.02 | G20: =IF(L17="","",ROUND(F20*L17/100,2)) -> 93.9 | J20: =intern_Datenblatt!A22 -> E-Mail | L20: =+'EDV-Handel'!T30 -> office@btc.at
D21: =IF(L17="","","+ 20 %") -> + 20 % | E21: =IF(L17="","",intern_Datenblatt!A69) -> Umsatzsteuer | G21: =IF(G20="","",ROUND(G20*0.2,2)) -> 18.78 | J21: =intern_Datenblatt!A67 -> UID-Nummer | L21: =+'EDV-Handel'!T34 -> ATU20457001
C22: Rabatt total | G22: =IF(G20="","",SUM(G20:G21)) -> 112.68 | J22: =intern_Datenblatt!A26 -> FB-Nummer | L22: =+'EDV-Handel'!T35 -> FN 228850h
J23: =intern_Datenblatt!A30 -> Gerichtsstand | L23: =+'EDV-Handel'!T36 -> LG Wiener Neustadt
E24: =IF('EDV-Handel'!O33="auf ziel","",CONCATENATE("Auszahlung - ",'EDV-Handel'!O33," - Kassa: 00",RANDBETWEEN(1,5))) -> Auszahlung - VISA - Kassa: 003 | J24: =intern_Datenblatt!A10 -> Bank | L24: =+'EDV-Handel'!T31 -> Wiener Neustädter Sparkasse
E25: =IF('EDV-Handel'!O33="auf ziel","",CONCATENATE(RANDBETWEEN(10,18),":",RANDBETWEEN(10,59),":",RANDBETWEEN(10,59))) -> 15:30:38 | J25: =intern_Datenblatt!A33 -> IBAN | L25: =+'EDV-Handel'!T32 -> AT872026700600007052
J26: =intern_Datenblatt!A18 -> BIC | L26: =+'EDV-Handel'!T33 -> WINSATWNXXX
C30: =IF(L4="","",L4) -> BTC Handels- und Service GmbH | E30: =IF(L24="","",L24) -> Wiener Neustädter Sparkasse
C31: =IF(L5="","",L5) -> Steinschneidergasse 25 | E31: =IF(L25="","",L25) -> AT872026700600007052
C32: =IF(L6="","",L6) -> 2700 Wiener Neustadt | E32: WINSATWNXXX
C33: =IF(L18="","",L18) -> +43 2622 78 930 | E33: =IF(L21="","",L21) -> ATU20457001
C34: =IF(L19="","",L19) -> www.btc.at | E34: =IF(L22="","",L22) -> FN 228850h
C35: =IF(L20="","",L20) -> office@btc.at | E35: =IF(L23="","",L23) -> LG Wiener Neustadt

Sheet AR oder Rabatt
K1: =intern_Datenblatt!B1 -> Verändern Sie hier den Beleg: | P1: =intern_Datenblatt!B3 -> Zurück zur Belegverwaltung
K3: =intern_Datenblatt!A14 -> Belegauswahl | L3: Rechnung
C4: =IF(L3="","",L3) -> Rechnung | K4: =intern_Datenblatt!A29 -> Firma | L4: =+Belegverwaltung!E11 -> Ira Dittmann e.U.
K5: =intern_Datenblatt!A27 -> Geschäftsbezeichnung | L5: =+Belegverwaltung!E13 -> Musikhaus | P5: =intern_Datenblatt!B4 -> Beleg kopieren
C6: =IF(L16="","",CONCATENATE(YEAR(L15),"-",L16)) -> 2020-521 | K6: =intern_Datenblatt!A64 -> Straße | L6: =+Belegverwaltung!E15 -> Bahngasse 25
K7: =intern_Datenblatt!A51 -> PLZ und Ort | L7: =+Belegverwaltung!E17 -> 2700 Wiener Neustadt
K8: =intern_Datenblatt!A66 -> Telefon | L8: =Belegverwaltung!E19 -> +43 2622 24 163
C9: =+IF(L10="","",L10) -> Firma | K9: =intern_Datenblatt!A67 -> UID-Nummer | L9: =Belegverwaltung!E25 -> ATU15354408
C10: =+IF(L11="","",L11) -> Carlos Steindl e.U. | K10: =intern_Datenblatt!A7 -> Anrede | L10: Firma
C11: =+IF(L12="","",L12) -> Gartengasse 17 | K11: =intern_Datenblatt!A29 -> Firma | L11: Carlos Steindl e.U.
C12: =IF(L13="","",L13) -> 65431 Kuchl | K12: =intern_Datenblatt!A64 -> Straße | L12: Gartengasse 17
C13: =IF(L14="","",CONCATENATE("Ihre UID-Nr.: ",L14)) -> Ihre UID-Nr.: ATU52014698 | F13: =IF(L7="","",CONCATENATE(RIGHT(L7,LEN(L7)-5),",")) -> Wiener Neustadt, | H13: =IF(L15="","",L15) -> 2020-04-10 | K13: =intern_Datenblatt!A51 -> PLZ und Ort | L13: 65431 Kuchl
K14: =intern_Datenblatt!A67 -> UID-Nummer | L14: ATU52014698
K15: =intern_Datenblatt!A57 -> Rechnungsdatum | L15: =DATE(YEAR(TODAY()),4,10) -> 2020-04-10
C16: =IF(L3="Rechnung",IF(K20="","",UPPER(K19)),"") -> ARTIKELBEZEICHNUNG | F16: =IF(L3="Rechnung",IF(N20="","",UPPER(N19)),"") -> PREIS/EH | G16: =IF(L3="Rechnung",IF(M20="","",UPPER(M19)),"") -> MENGE | H16: =IF(L3="Rechnung",IF(H18="","","BETRAG"),"") -> BETRAG | K16: =intern_Datenblatt!A58 -> Rechnungsnummer | L16: 521
C18: =IF($L$3="Rechnung",IF(K20="","",K20),"") -> the t.mix 201-USB Play | F18: =IF($L$3="Rechnung",IF(N20="","",N20),"") -> 88 | G18: =IF($L$3="Rechnung",IF(M20="","",M20),"") -> 1 | H18: =IF($L$3="Rechnung",IF(N20="","",N20*M20),"") -> 88
C19: Denon MCX8000 | F19: =IF($L$3="Rechnung",IF(N21="","",N21),"") -> 1299 | G19: =IF($L$3="Rechnung",IF(M21="","",M21),"") -> 1 | H19: =IF($L$3="Rechnung",IF(N21="","",N21*M21),"") -> 1299 | K19: =+intern_Datenblatt!A8 -> Artikelbezeichnung | M19: =+intern_Datenblatt!A42 -> Menge | N19: =+intern_Datenblatt!A55 -> Preis/EH
C20: Sennheiser HD-25 | F20: 29 | G20: 1 | H20: 29 | K20: the t.mix 201-USB Play | M20: 1 | N20: 88
C21: K&M 12190 Laptopstand | F21: 77 | G21: 1 | H21: 77 | K21: Denon MCX8000 | M21: 1 | N21: 1299
C22: LD Systems PPA 2 | F22: 24.9 | G22: 1 | H22: 24.9 | K22: Sennheiser HD-25 | M22: 1 | N22: 29
C23: Ortofon Concorde Pro S Styles | F23: 19.9 | G23: 5 | H23: 99.5 | K23: K&M 12190 Laptopstand | M23: 1 | N23: 77
K24: LD Systems PPA 2 | M24: 1 | N24: 24.9
C25: =IF(H25="","","Gesamtbetrag brutto in EUR") -> Gesamtbetrag brutto in EUR | H25: =+IF(SUM(H18:H23)=0,"",SUM(H18:H23)) -> 1617.4 | K25: Ortofon Concorde Pro S Styles | M25: 5 | N25: 19.9
C26: =IF(H25="","","enthaltene Umsatzsteuer 20 %") -> enthaltene Umsatzsteuer 20 % | H26: =IF(H25="","",ROUND(H25/6,2)) -> 269.57 | K26: =IF(L3="Gutschrift","Text für Rabattgutschrift","") ->  | L26: Wie telefonisch vereinbart, gewähren wir Ihnen für die bei der Lieferung entstandenen optischen Schäden einen Sonderrabatt von | P26: =IF(L3="Gutschrift",L26,"") -> 
C27: =IF(H25="","","Gesamtbetrag netto in EUR ") -> Gesamtbetrag netto in EUR | H27: =IF(H25="","",H25-H26) -> 1347.83
P29: =IF(L3="Gutschrift",IF(L30="","","+ 20 % Umsatzsteuer"),"") -> 
K30: =IF(L3="Gutschrift",intern_Datenblatt!A79,"") ->  | L30: 10 | P30: =IF(L3="Gutschrift",IF(L30="","",CONCATENATE(L30," % von ")),"") -> 
C31: =IF(L3="Gutschrift","",IF(L32="","",CONCATENATE(K32,": ",L32))) -> Zahlungskonditionen: 30 Tage netto bzw. 7 Tage abzüglich 2 % Skonto | K31: =IF(L3="Gutschrift",intern_Datenblatt!A32,"") ->  | L31: 980 | P31: =IF(L3="Gutschrift",IF(L31="","",L31),"") -> 
C32: =IF(L3="Gutschrift","",IF(K20="","","Die Lieferung erfolgt am Tag der Rechnungslegung.")) -> Die Lieferung erfolgt am Tag der Rechnungslegung. | K32: =intern_Datenblatt!A76 -> Zahlungskonditionen | L32: 30 Tage netto bzw. 7 Tage abzüglich 2 % Skonto | Q32: =IF(L3="Gutschrift",IF(Q34="","",Q34*0.2),"") -> 
K34: =intern_Datenblatt!A10 -> Bank | L34: =Belegverwaltung!E27 -> BKS Bank AG | Q34: =IF(L3="Gutschrift",IF(L31="","",L31*L30/100),"") -> 
C35: =IF(K20="","","Wir danken Ihnen für das uns entgegengebrachte Vertrauen und freuen uns, Sie auch in Zukunft zu unseren Kunden zählen zu dürfen.") -> Wir danken Ihnen für das uns entgegengebrachte Vertrauen und freuen uns, Sie auch in Zukunft zu unseren Kunden zählen zu dürfen. | K35: =intern_Datenblatt!A33 -> IBAN | L35: =Belegverwaltung!E31 -> AT761700000180024810 | Q35: =IF(L3="Gutschrift",IF(Q34="","",Q34+Q32),"") -> 
K36: =intern_Datenblatt!A18 -> BIC | L36: =Belegverwaltung!E29 -> BFKKAT2K
K37: =intern_Datenblatt!A30 -> Gerichtsstand | L37: Wien
K38: =intern_Datenblatt!A26 -> FB-Nummer | L38: FN 296339v
C39: =IF(L4="","",L4) -> Ira Dittmann e.U. | F39: =IF(L34="","",L34) -> BKS Bank AG
C40: =IF(L6="","",L6) -> Bahngasse 25 | F40: =IF(L35="","",L35) -> AT761700000180024810
C41: =IF(L7="","",L7) -> 2700 Wiener Neustadt | F41: =IF(L36="","",L36) -> BFKKAT2K
C42: =IF(L8="","",L8) -> +43 2622 24 163 | F42: =IF(L37="","",CONCATENATE("Gerichtsstand ",L37)) -> Gerichtsstand Wien | G42: =IF(L37="","",CONCATENATE(K37," ",L37)) -> Gerichtsstand Wien
C43: =IF(L9="","",L9) -> ATU15354408 | H43: =IF(L38="","",L38) -> FN 296339v

Sheet TL+Kontoauszug MB Beta
J1: =intern_Datenblatt!B1 -> Verändern Sie hier den Beleg: | O1: =intern_Datenblatt!B3 -> Zurück zur Belegverwaltung
C2: T a g e s a b s c h l u s s C o m p u t e r k a s s e
F3: =IF(L6="","",L6) -> 2020-04-14 | G3: =CONCATENATE(RANDBETWEEN(16,20),":",RANDBETWEEN(10,59),":",RANDBETWEEN(10,59)) -> 17:41:23 | J3: =intern_Datenblatt!A29 -> Firma | L3: =+Belegverwaltung!E11 -> Ira Dittmann e.U.
J4: =+intern_Datenblatt!A64 -> Straße | L4: =+Belegverwaltung!E15 -> Bahngasse 25
C5: =IF(J10="","",CONCATENATE(J10," ",M10," % USt")) -> BAR 20 % USt | F5: =IF(L10="","","EUR") -> EUR | G5: =IF(L10="","",L10) -> 579.5 | J5: =+intern_Datenblatt!A51 -> PLZ und Ort | L5: =+Belegverwaltung!E17 -> 2700 Wiener Neustadt | O5: =intern_Datenblatt!B4 -> Beleg kopieren
C6: MASTERCARD 20 % USt | F6: EUR | G6: 39.9 | J6: =+intern_Datenblatt!A20 -> Datum | L6: =DATE(YEAR(TODAY()),4,14) -> 2020-04-14
C7: MAESTRO 20 % USt | F7: EUR | G7: 79.9 | J7: =+intern_Datenblatt!A37 -> Kassier/in | L7: Heidi
J9: Zahlungsart/Umsatzart | L9: =intern_Datenblatt!A16 -> Betrag | M9: =+intern_Datenblatt!A72 -> USt %
J10: BAR | L10: 579.5 | M10: 20
C11: =IF(L7="","",CONCATENATE(J7,": ",L7)) -> Kassier/in: Heidi | F11: =IF(G11="","","EUR") -> EUR | G11: =IF(SUM(L10:L15)=0,"",SUM(L10:L15)) -> 699.3 | J11: MASTERCARD | L11: 39.9 | M11: 20
C12: =CONCATENATE("Kassa Nummer: 00",RANDBETWEEN(1,7)) -> Kassa Nummer: 006 | J12: MAESTRO | L12: 79.9 | M12: 20
C18: =IF(L21="","",CONCATENATE(L21," - ",L22," - ",L23)) -> Beta-Bank AG - Hauptplatz 17 - 2700 Wiener Neustadt | J18: =+intern_Datenblatt!A20 -> Datum | L18: =IF(L6="","",L6+6) -> 2020-04-20
J19: Auszugsnummer | L19: 08 - 1 von 1
J20: alter Kontostand | L20: -59.87
J21: Bankbezeichnung | L21: Beta-Bank AG
C22: =+IF(L3="","",L3) -> Ira Dittmann e.U. | F22: =+IF(L6="","",CONCATENATE(J6,":")) -> Datum: | G22: =+IF(L18="","",L18) -> 2020-04-20 | J22: =+intern_Datenblatt!A64 -> Straße | L22: Hauptplatz 17
C23: =+IF(L4="","",L4) -> Bahngasse 25 | F23: =+IF(L24="","",CONCATENATE(J24,":")) -> IBAN: | G23: =IF(L24="","",L24) -> AT701912000002663986 | J23: =+intern_Datenblatt!A51 -> PLZ und Ort | L23: 2700 Wiener Neustadt
C24: =+IF(L5="","",L5) -> 2700 Wiener Neustadt | F24: =+IF(L25="","",CONCATENATE(J25,":")) -> BIC: | G24: =+IF(L25="","",L25) -> MBBAATWW | J24: =+intern_Datenblatt!A33 -> IBAN | L24: AT701912000002663986
J25: =+intern_Datenblatt!A18 -> BIC | L25: MBBAATWW
C26: DATUM | D26: BUCHUNGSTEXT | F26: VALUTA | G26: BETRAG EUR
C27: =+IF(J28="","",J28) -> 2020-04-15 | D27: =IF(L28="","",L28) -> Taxi 2700 dankt MAESTRO | F27: =IF(K28="","",+K28) -> 2020-04-16 | G27: =IF(M28="","",+M28) -> -9 | J27: =+intern_Datenblatt!A20 -> Datum | K27: Valuta | L27: Buchungstext | M27: Betrag
C28: 2020-04-17 | D28: =IF(L29="","",L29) -> Gutschrift, Verkäufe MASTERCARD | F28: =+IF(K29="","",K29) -> 2020-04-20 | G28: 759.2 | J28: =+IF($L$6="","",$L$6+1) -> 2020-04-15 | K28: =+IF($L$6="","",$L$6+2) -> 2020-04-16 | L28: Taxi 2700 dankt MAESTRO | M28: -9
C29: 2020-04-17 | D29: =+IF(L30="","",L30) -> Bareinlage | F29: 2020-04-20 | G29: 1500 | J29: =+IF($L$6="","",$L$6+3) -> 2020-04-17 | K29: =+IF($L$6="","",$L$6+6) -> 2020-04-20 | L29: Gutschrift, Verkäufe MASTERCARD | M29: 759.2
C30: 2020-04-20 | D30: =+IF(L31="","",L31) -> Gutschrift, Verkäufe MAESTRO | F30: 2020-04-21 | G30: 249.8 | J30: =+IF($L$6="","",$L$6+3) -> 2020-04-17 | K30: =+IF($L$6="","",$L$6+6) -> 2020-04-20 | L30: Bareinlage | M30: 1500
D31: =+IF(L32="","",L32) ->  | J31: =+IF($L$6="","",$L$6+6) -> 2020-04-20 | K31: =+IF($L$6="","",$L$6+7) -> 2020-04-21 | L31: Gutschrift, Verkäufe MAESTRO | M31: 249.8
D32: =+IF(L33="","",L33) -> 
D33: =+IF(L34="","",L34) -> 
C35: Alter | D35: Summe | E35: Summe | F35: Neuer | G35: Neuer
C36: Kontostand | D36: Belastungen | E36: Gutschriften | F36: Kontostand
C37: =+IF(L20="",0,L20) -> -59.87 | D37: =+SUMIFS(G27:G33,G27:G33,"<0") -> -9 | E37: =+SUMIFS(G27:G33,G27:G33,">0") -> 2509 | F37: =+SUM(C37:E37) -> 2440.13
F38: =+IF(L19="","",CONCATENATE("Auszug ",L19)) -> Auszug 08 - 1 von 1

Sheet AR.
L1: =intern_Datenblatt!B1 -> Verändern Sie hier den Beleg: | R1: =intern_Datenblatt!B3 -> Zurück zur Belegverwaltung
C3: =IF(M4="","",M4) -> Ira Dittmann e.U. | L3: =intern_Datenblatt!A27 -> Geschäftsbezeichnung | M3: =+Belegverwaltung!E13 -> Musikhaus
E4: =+IF(M7="","",M7) -> +43 2622 24 163 | F4: =+IF(M5="","",M5) -> Bahngasse 25 | H4: =+IF(M9="","",M9) -> www.musikhaus.ac.at | L4: =intern_Datenblatt!A29 -> Firma | M4: =+Belegverwaltung!E11 -> Ira Dittmann e.U.
E5: =+IF(M8="","",M8) -> +43 2622 24 163 - 49 | F5: =+IF(M6="","",M6) -> 2700 Wiener Neustadt | H5: =+IF(M9="","",CONCATENATE("office@",MID(M9,5,LEN(M9)-4))) -> office@musikhaus.ac.at | L5: =+intern_Datenblatt!A64 -> Straße | M5: =+Belegverwaltung!E15 -> Bahngasse 25 | R5: Zum Zahlungseingang
L6: =+intern_Datenblatt!A51 -> PLZ und Ort | M6: =+Belegverwaltung!E17 -> 2700 Wiener Neustadt
L7: =+intern_Datenblatt!A66 -> Telefon | M7: =+Belegverwaltung!E19 -> +43 2622 24 163
L8: =+intern_Datenblatt!A25 -> Fax | M8: =+Belegverwaltung!E21 -> +43 2622 24 163 - 49 | R8: =intern_Datenblatt!B4 -> Beleg kopieren
L9: =+intern_Datenblatt!A73 -> Website | M9: =+Belegverwaltung!E23 -> www.musikhaus.ac.at
L10: =+intern_Datenblatt!A67 -> UID-Nummer | M10: =+Belegverwaltung!E25 -> ATU15354408
L11: =intern_Datenblatt!A7 -> Anrede | M11: Frau
C12: =+IF(M11="","",M11) -> Frau | L12: =intern_Datenblatt!A34 -> Kundenname | M12: Nina Rauscher
C13: =+IF(M12="","",M12) -> Nina Rauscher | H13: =IF(M17="","","Rechnung") -> Rechnung | I13: =IF(M17="","",M17) -> 1058 | L13: =intern_Datenblatt!A64 -> Straße | M13: Fabrikstraße 4 | R13: =M12 -> Nina Rauscher
C14: =+IF(M13="","",M13) -> Fabrikstraße 4 | H14: =IF(M16="","","Kunde") -> Kunde | I14: =IF(M16="","",M16) -> 4526 | L14: =intern_Datenblatt!A51 -> PLZ und Ort | M14: 2522 Oberwaltersdorf
C15: =+IF(M14="","",M14) -> 2522 Oberwaltersdorf | H15: =IF(M15="","",L15) -> Datum | I15: =IF(M15="","",M15) -> 2020-04-22 | L15: =+intern_Datenblatt!A20 -> Datum | M15: =+DATE(YEAR(TODAY()),4,22) -> 2020-04-22
L16: =intern_Datenblatt!A35 -> Kundennummer | M16: 4526
L17: =intern_Datenblatt!A58 -> Rechnungsnummer | M17: 1058
L20: =+intern_Datenblatt!A17 -> Bezeichnung | N20: =+intern_Datenblatt!A42 -> Menge | O20: =intern_Datenblatt!A46 -> Netto/EH | P20: =+intern_Datenblatt!A72 -> USt %
L21: ProArte Konzertgitarre GC230 II | N21: 1 | O21: 245 | P21: 20
L22: Gigbag schwarz | N22: 1 | O22: 24 | P22: 20
C23: =IF(L21="","",L21) -> ProArte Konzertgitarre GC230 II | F23: =IF(O21="","",O21) -> 245 | G23: =IF(N21="","",N21) -> 1 | H23: =IF(P21="","",CONCATENATE(P21," %")) -> 20 % | I23: =IFERROR(IF(F23="",O21,G23*F23),"") -> 245 | L23: Hercules Stands GS414B | N23: 1 | O23: 29 | P23: 20
C24: Gigbag schwarz | F24: =IF(O22="","",O22) -> 24 | G24: =IF(N22="","",N22) -> 1 | H24: =IF(P22="","",CONCATENATE(P22," %")) -> 20 % | I24: 24 | L24: K&M 14670 Footrest Black | N24: 1 | O24: 12 | P24: 20
C25: Hercules Stands GS414B | F25: 29 | G25: 1 | H25: 20 % | I25: 29 | L25: Harley Benton Security Locks BK | N25: 1 | O25: 6 | P25: 20
C26: K&M 14670 Footrest Black | F26: 12 | G26: 1 | H26: 20 % | I26: 12 | L26: Ernie Ball 14037 Nylongurt | N26: 1 | O26: 7 | P26: 20
C27: Harley Benton Security Locks BK | F27: 6 | G27: 1 | H27: 20 % | I27: 6
C28: Ernie Ball 14037 Nylongurt | F28: 7 | G28: 1 | H28: 20 % | I28: 7
I29: 0
I30: 0
F31: Zwischensumme | I31: =IF(I23="","",SUM(I23:I30)) -> 323 | L31: =+intern_Datenblatt!A76 -> Zahlungskonditionen | M31: 7 Tage 2 % Skonto; 30 Tage netto
F32: =IF(I32=0,"","Umsatzsteuer 20 %") -> Umsatzsteuer 20 % | I32: =SUMIFS($I$23:$I$30,$P$21:$P$28,20)*0.2 -> 64.6
F33: =IF(I33=0,"","Umsatzsteuer 10 %") ->  | I33: =SUMIFS($I$23:$I$30,$P$21:$P$28,10)*0.1 -> 0 | L33: =intern_Datenblatt!A10 -> Bank | M33: =Belegverwaltung!E27 -> BKS Bank AG
I34: =SUM(I31:I33) -> 387.6 | L34: =intern_Datenblatt!A33 -> IBAN | M34: =Belegverwaltung!E31 -> AT761700000180024810
L35: =intern_Datenblatt!A18 -> BIC | M35: =Belegverwaltung!E29 -> BFKKAT2K
L36: =+intern_Datenblatt!A30 -> Gerichtsstand | M36: Wien
C37: =IF(M31="","",L31) -> Zahlungskonditionen | L37: =+intern_Datenblatt!A70 -> Unterschrift | M37: Dittmann
C38: =IF(M31="","",M31) -> 7 Tage 2 % Skonto; 30 Tage netto
C39: Lieferdatum entspricht Rechnungsdatum
G41: =IF(M37="","",M37) -> Dittmann
G45: =IF(M4="","",M4) -> Ira Dittmann e.U.
C47: Es gelten die allgemeinen Geschäftsbedingungen des Unternehmens in der aktuellen Fassung. Der Kaufgegenstand bleibt bis zur vollständigen Bezahlung des Kaufpreises und aller damit verbundenen Kosten und Spesen in unserem Eigentum.
C52: =+IF(M33="","",CONCATENATE(L33,": ",M33)) -> Bank: BKS Bank AG
C53: =+IF(M34="","",CONCATENATE(L34,": ",M34)) -> IBAN: AT761700000180024810 | E53: =+IF(M10="","",CONCATENATE(L10,": ",M10)) -> UID-Nummer: ATU15354408 | G53: =IF(M3="","",M3) -> Musikhaus
C54: =+IF(M35="","",CONCATENATE(L35,": ",M35)) -> BIC: BFKKAT2K | E54: =+IF(M36="","",CONCATENATE(L36,": ",M36)) -> Gerichtsstand: Wien | G54: =IF(M4="","",M4) -> Ira Dittmann e.U.

Sheet Kontoauszug BKS
L1: =intern_Datenblatt!B1 -> Verändern Sie hier den Beleg: | Q1: =intern_Datenblatt!B3 -> Zurück zur Belegverwaltung
F2: =IF(N6="","",CONCATENATE(L6,": ",N6)) -> BIC: BFKKAT2K
E3: Kontoauszug | F3: =IF(N7="","",CONCATENATE(L7,": ",N7)) -> IBAN: AT761700000180024810 | L3: =intern_Datenblatt!A29 -> Firma | N3: =+Belegverwaltung!E11 -> Ira Dittmann e.U.
C4: =+intern_Datenblatt!A20 -> Datum | D4: Buchungstext | F4: Wert | G4: Betrag | L4: =+intern_Datenblatt!A64 -> Straße | N4: =+Belegverwaltung!E15 -> Bahngasse 25
C5: =IF(N21="","",N21) -> 2020-04-27 | D5: =CONCATENATE(N22," ",N27) -> Nina Rauscher Re. 1058 abzgl. Skonto | F5: =IF(N21="","",N21) -> 2020-04-27 | G5: =IF(N26="","",N26) -> 379.848 | L5: =+intern_Datenblatt!A51 -> PLZ und Ort | N5: =+Belegverwaltung!E17 -> 2700 Wiener Neustadt | Q5: =intern_Datenblatt!B4 -> Beleg kopieren
C6: =IF(L13="","",L13) -> 2020-04-27 | D6: =IF(N13="","",N13) -> Geschäftsmiete | F6: =IF(M13="","",M13) -> 2020-04-27 | G6: =IF(O13="","",O13) -> -825.47 | H6: =IF(O13<0,"-","") -> - | L6: =+intern_Datenblatt!A18 -> BIC | N6: =+Belegverwaltung!E29 -> BFKKAT2K
C7: =IF(L14="","",L14) -> 2020-04-24 | D7: =IF(N14="","",N14) -> Barabhebung | F7: =IF(M14="","",M14) -> 2020-04-24 | G7: =IF(O14="","",O14) -> -1200 | H7: =IF(O14<0,"-","") -> - | L7: =+intern_Datenblatt!A33 -> IBAN | N7: =+Belegverwaltung!E31 -> AT761700000180024810 | Q7: =LEFT(N7,9) -> AT7617000
C8: =IF(L15="","",L15) -> 2020-04-23 | D8: =IF(N15="","",N15) -> Gehälter | F8: =IF(M15="","",M15) -> 2020-04-23 | G8: =IF(O15="","",O15) -> -9852.15 | H8: =IF(O15<0,"-","") -> - | L8: Alter Kontostand | N8: 24256.2 | Q8: =RIGHT(Q7,5) -> 17000
C9: =IF(L16="","",L16) ->  | D9: =IF(N16="","",N16) ->  | F9: =IF(M16="","",M16) ->  | G9: =IF(O16="","",O16) ->  | H9: =IF(O16<0,"-","") ->  | L9: Auszug | N9: 19
D10: =IF(N17="","",N17) -> 
E11: Alter Kontostand | G11: =IF(N8="","",N8) -> 24256.2 | H11: =IF(N8<0,"-","") -> 
C12: =IF(N3="","",N3) -> Ira Dittmann e.U. | E12: Summe Gutschriften | G12: =SUMIFS($G$5:$G$9,$H$5:$H$9,"") -> 379.848 | L12: Datum | M12: Wert | N12: Text | O12: =+intern_Datenblatt!A16 -> Betrag
C13: =IF(N4="","",N4) -> Bahngasse 25 | E13: Summe Belastungen | G13: =SUMIFS($G$5:$G$9,$H$5:$H$9,"-") -> -11877.62 | H13: =IF(G13=0,"","-") -> - | L13: =+IF(N21="","",N21) -> 2020-04-27 | M13: =+IF(L13="","",L13) -> 2020-04-27 | N13: Geschäftsmiete | O13: -825.47
C14: =IF(N5="","",N5) -> 2700 Wiener Neustadt | E14: Neuer Kontostand in EUR | G14: =SUM(G11:G13) -> 12758.428 | H14: =IF(SUM(G11:G13)<0,"-","") ->  | L14: =+IF(N21="","",N21-3) -> 2020-04-24 | M14: =+IF(L14="","",L14) -> 2020-04-24 | N14: Barabhebung | O14: -1200
E15: Buchungen bis | F15: =IF(N9="","",CONCATENATE(L9,": ",N9)) -> Auszug: 19 | G15: Blatt 1 von 1 | L15: =+IF(N21="","",N21-4) -> 2020-04-23 | M15: =+IF(L15="","",L15) -> 2020-04-23 | N15: Gehälter | O15: -9852.15
C16: * vor Buchungstext = Beleg liegt bei. Rechtsform: Aktiengesellschaft, Sitz Klagenfurt, Firmenbuch-Nr: FN 91810s/Klagenfurt
C17: Guthaben auf diesem Konto sind gemäß Einlagensicherungs- und Anlegerentschädigungsgesetz erstattungsfähig. Details finden Sie im "Informationsbogen für Einleger" in Ihrer Filiale oder unter www.bks.at
C21: Überweisung | D21: =IF(Q25="","",Q25) -> 43000 | F21: =IF(C25="","",C25) -> 00180024810 | G21: Gutschrift | L21: =+intern_Datenblatt!A20 -> Datum | N21: =+IF(AR.!M15="","",AR.!M15+5) -> 2020-04-27 | Q21: =CONCATENATE("/ ",RANDBETWEEN(10000000000,99999999999)) -> / 85992008367
C22: durch | D22: =IF(N21="","",N21) -> 2020-04-27 | E22: 1900 / | F22: =IF(N21="","",N21) -> 2020-04-27 | L22: Auftraggeber | N22: =AR.!M12 -> Nina Rauscher
L23: =+intern_Datenblatt!A33 -> IBAN | N23: AT094300000000044152 | Q23: =LEFT(N23,9) -> AT0943000
C25: =RIGHT(N7,11) -> 00180024810 | G25: =IF(Q8="","",Q8) -> 17000 | L25: =+intern_Datenblatt!A18 -> BIC | N25: VBOEATWW | Q25: =RIGHT(Q23,5) -> 43000
L26: =intern_Datenblatt!A16 -> Betrag | N26: =AR.!I34*0.98 -> 379.848
L27: Verwendungszweck | N27: =+CONCATENATE("Re. ",AR.!M17," abzgl. Skonto") -> Re. 1058 abzgl. Skonto
C28: =IF(N27="","",N27) -> Re. 1058 abzgl. Skonto
C32: =IF(N23="","",CONCATENATE("AUFTRAGGEBER-IBAN: ",N23)) -> AUFTRAGGEBER-IBAN: AT094300000000044152
C33: =IF(N25="","",CONCATENATE("AUFTRAGGEBER-BIC: ",N25)) -> AUFTRAGGEBER-BIC: VBOEATWW | G33: =IF(N26="","",N26) -> 379.848
C36: =IF(N23="","",RIGHT(N23,11)) -> 00000044152 | E36: =IF(N22="","",N22) -> Nina Rauscher

Sheet Kassenbon Rabatt&Skonto
J1: =intern_Datenblatt!B1 -> Verändern Sie hier den Beleg: | O1: =intern_Datenblatt!B3 -> Zurück zur Belegverwaltung
D3: =IF(K4="","",UPPER(K4)) -> FARBEN & EISENWAREN | J3: =+intern_Datenblatt!A29 -> Firma | K3: Golla OG | Q3: =+K3 -> Golla OG
J4: =+intern_Datenblatt!A62 -> Slogan | K4: Farben & Eisenwaren
D5: =IF(K3="","",K3) -> Golla OG | J5: =intern_Datenblatt!A64 -> Straße | K5: Bräunlichgasse 11 | O5: =intern_Datenblatt!B4 -> Beleg kopieren
J6: =intern_Datenblatt!A51 -> PLZ und Ort | K6: 2700 Wiener Neustadt
C7: =(IF(K6="","",CONCATENATE(K6,", ",K5))) -> 2700 Wiener Neustadt, Bräunlichgasse 11 | J7: =+intern_Datenblatt!A67 -> UID-Nummer | K7: ATU69869324
C8: =+IF(K7="","",K7) -> ATU69869324 | J8: =+intern_Datenblatt!A37 -> Kassier/in | K8: Grasser
J9: =intern_Datenblatt!A73 -> Website | K9: www.golla.at
C10: =+CONCATENATE("Kasse: ",RANDBETWEEN(1,4)) -> Kasse: 3 | F10: =+CONCATENATE("Filiale: ",RANDBETWEEN(10,99)) -> Filiale: 56 | J10: =+intern_Datenblatt!A34 -> Kundenname | K10: =Belegverwaltung!E11 -> Ira Dittmann e.U.
C11: =+CONCATENATE(J8,": ",K8) -> Kassier/in: Grasser | E11: Bon: | F11: =+CONCATENATE(RANDBETWEEN(10,99),"-",K14,"-",RANDBETWEEN(10000,99999)) -> 80-43949-69495 | J11: =intern_Datenblatt!A64 -> Straße | K11: =Belegverwaltung!E15 -> Bahngasse 25
C12: =CONCATENATE(J14,":",) -> Datum: | D12: =IF(K14="","",K14) -> 2020-04-28 | F12: Zeit: | G12: =+RAND()*0.375+0.375 -> 12:09:53.491 | J12: =intern_Datenblatt!A51 -> PLZ und Ort | K12: =Belegverwaltung!E17 -> 2700 Wiener Neustadt
C13: =IF(K10="","","KUNDENDATEN") -> KUNDENDATEN | J13: =+intern_Datenblatt!A67 -> UID-Nummer | K13: =Belegverwaltung!E25 -> ATU15354408
C14: =IF(K10="","",K10) -> Ira Dittmann e.U. | J14: =intern_Datenblatt!A20 -> Datum | K14: =DATE(YEAR(TODAY()),4,28) -> 2020-04-28
C15: =CONCATENATE(K11," ",K12) -> Bahngasse 25 2700 Wiener Neustadt | J15: =+intern_Datenblatt!A75 -> Auswahl Zahlungsart | K15: MAESTRO | O15: =IF(K15="AUF ZIEL","NEIN","JA") -> JA
C16: =IF(K13="","",K13) -> ATU15354408 | J16: =+intern_Datenblatt!A28 -> Logoauswahl | K16: Logo14
C17: =(IF(J19="","",J19)) -> TecTake Werkstattregal 180 | F17: =IF(M19=20,"20 %",IF(M19=10,"10 %","")) -> 20 % | G17: =+IF(L19="","",L19) -> 49.9
C18: =(IF(J20="","",J20)) -> TecTake Werkstattregal 100 | F18: =IF(M20=20,"20 %",IF(M20=10,"10 %","")) -> 20 % | G18: =+IF(L20="","",L20) -> 35.9 | J18: =intern_Datenblatt!A17 -> Bezeichnung | L18: =intern_Datenblatt!A46 -> Netto/EH | M18: =intern_Datenblatt!A72 -> USt %
C19: =(IF(J21="","",J21)) -> Bosch DIY Akku-Schrauber IXO | F19: 20 % | G19: =+IF(L21="","",L21) -> 38.99 | J19: TecTake Werkstattregal 180 | L19: 49.9 | M19: 20
C20: =(IF(J22="","",J22)) -> Wandbefestigung Regal | F20: =IF(M22=20,"20 %",IF(M22=10,"10 %","")) -> 20 % | G20: =+IF(L22="","",L22) -> 11.9 | J20: TecTake Werkstattregal 100 | L20: 35.9 | M20: 20
G21: =SUM(G17:G20) -> 136.69 | J21: Bosch DIY Akku-Schrauber IXO | L21: 38.99 | M21: 20
C22: =IF(K24="","",CONCATENATE("- ",K24," % ",K25)) -> - 5 % Stammkundenrabatt | G22: =IF(K24="",0,ROUND(G21*K24/100,2)) -> 6.83 | J22: Wandbefestigung Regal | L22: 11.9 | M22: 20
G23: =G21-G22 -> 129.86
C24: =IF(K26="","",CONCATENATE("- ",K26," % Skonto")) -> - 2 % Skonto | G24: =IF(K26="",0,ROUND(G23*K26/100,2)) -> 2.6 | J24: =intern_Datenblatt!A79 -> Rabatt Prozentsatz | K24: 5
G25: =G23-G24 -> 127.26 | J25: =intern_Datenblatt!A78 -> Rabattart | K25: Stammkundenrabatt
C26: =IF(E26=0,"","20 % USt von") -> 20 % USt von | E26: =+SUMIFS(L19:L22,M19:M22,20)*(100-K24)/100*(100-K26)/100 -> 127.25839 | G26: =E26*0.2 -> 25.451678 | J26: Skonto Prozentsatz | K26: 2
C27: =IF(E27=0,"","10 % USt von") ->  | E27: =SUMIFS(L19:L22,M19:M22,10)*(100-K24)/100*(100-K26)/100 -> 0 | G27: =+E27*0.1 -> 0
C28: TOTAL IN EUR | F28: =SUM(G25:G27) -> 152.711678
C29: =+CONCATENATE("Gegeben ",IF(K15="BAR","BAR EUR","Karte EUR")) -> Gegeben Karte EUR | G29: =IF(K15="BAR",ROUNDUP(F28,-1),F28) -> 152.711678
C30: =IF(K15="","",IF(K15="BAR","Rückgeld EUR",K15)) -> MAESTRO | G30: =IF(K15="BAR",G29-F28,"") -> 
C31: =IF(K15="","",IF(C30="Rückgeld EUR","","BEZAHLT")) -> BEZAHLT
C32: =IF(K15="","",IF(C30="Rückgeld EUR","Stammkunde werden","")) ->  | D32: =IF(K15="","",IF($C$30="Rückgeld EUR","",$K$14/3)) -> 14649.66667 | E32: =IF(K15="","",IF($C$30="Rückgeld EUR","",$K$14*56)) -> 2461144 | F32: =IF(K15="","",IF(K15="BAR","",K14)) -> 2020-04-28 | G32: =IF(K15="","",IF($C$30="Rückgeld EUR","",$K$14*561)) -> 24655389
C33: =IF(K15="","",IF(C30="Rückgeld EUR","lohnt sich doppelt!","")) ->  | D33: =IF(K15="","",IF($C$30="Rückgeld EUR","","EA0000000041359")) -> EA0000000041359
C34: =IF(K15="","",IF(C30="Rückgeld EUR","Laufend tolle Aktionen!","")) ->  | D34: =IF(K15="","",IF($C$30="Rückgeld EUR","",IF($C$30="MAESTRO","PAN: ","Karte:"))) -> PAN: | F34: =IF(K15="","",IF($C$30="Rückgeld EUR","",IF($C$30="MAESTRO","**** **** **** 4523"," **** **** **** 4523"))) -> **** **** **** 4523
D35: =IF(K15="","",IF($C$30="Rückgeld EUR","",IF($C$30="MAESTRO","","Gültig bis:"))) ->  | F35: =IF(K15="","",IF($C$30="Rückgeld EUR","",IF($C$30="MAESTRO","",K14+458))) -> 
C36: VIELEN DANK FÜR IHREN EINKAUF!
C37: Rechnungsdatum = Lieferdatum
C39: =IF(K9="","",K9) -> www.golla.at

Sheet Logoübersicht
B2: Logoübersicht | M2: =intern_Datenblatt!B3 -> Zurück zur Belegverwaltung
B4: Logo 01 | D4: Logo 02 | F4: Logo 03 | H4: Logo 04 | J4: Logo 05
B13: Logo 06 | D13: Logo 07 | F13: Logo 08 | H13: Logo 09 | J13: Logo 10
B24: Logo 11 | D24: Logo 12 | F24: Logo 13 | H24: Logo 14 | J24: Logo 15
B33: Logo 16 | D33: Logo 17 | F33: Logo 18 | H33: Logo 19 | J33: Logo 20

Sheet Hilfe
B2: Hilfe
B4: =intern_Datenblatt!B3 -> Zurück zur Belegverwaltung
B7: Diesen Button finden Sie rechts neben jedem Beleg. Sie kommen damit schnell zurück zur Übersicht.
B9: =intern_Datenblatt!B4 -> Beleg kopieren
B12: Mit wenigen Klicks können Sie nun die Belege zur Weiterverwendung (z.B. in Word) kopieren.
B13: 1. Aktivieren Sie die Makros (Erklärung siehe unten).
B14: 2. Klicken Sie auf den Button „Beleg kopieren“.
B15: 3. Öffnen Sie Word.
B16: 4. Mit der Tastenkombination STRG+V können Sie den Beleg nun in Word einfügen.
B18: So sorgen Sie dafür, dass Excel die Arbeit mit Makros zulässt:
B19: 1. Klicken Sie auf die Registerkarte „Datei“.
B20: 2. Wählen Sie „Optionen“ (meist ganz unten auf der Seite zu finden).
B21: 3. In den Optionen wechseln Sie in die Rubrik „Trust Center/Sicherheitscenter“.
B22: 4. Klicken Sie auf den Button „Einstellungen für das „Trust Center/Sicherheitscenter“.
B23: 5. Wechseln Sie danach in die Rubrik „Makroeinstellungen“.
B24: 6. Klicken Sie auf „Alle Makros aktivieren“.
B25: Lassen Sie sich dabei von der Sicherheitswarnung nicht irritieren. Nach erfolgter Arbeit mit der Belegkiste können Sie die Makros ganz einfach wieder ausschalten, indem Sie auf „Alle Makros mit Benachrichtigung deaktivieren“ klicken.
C30: Dropdown Felder
C33: Dieses Symbol kennzeichnet Felder, welche eine Auswahlliste enthalten.
B34: Durch das Klicken in das jeweilige Feld haben Sie die Möglichkeit, die Beleg- oder Zahlungsart, das Logo, den Umsatzsteuersatz und vieles mehr auszuwählen.

Sheet Kontakt und Impressum
B2: Kontakt | H2: =intern_Datenblatt!B3 -> Zurück zur Belegverwaltung
B4: Ihre Meinung ist uns wichtig! Bitte senden Sie Wünsche, Anregungen, Kritik und Lob an folgende Adresse:
B6: rechnungswesen@lernenwillmehr.at
B8: Impressum
B10: Projektleitung: | C10: Mag. Petra Salzer
C11: Mag. Lydia Schneider
B12: Inhalte und Produktion: | C12: Mag. Silke Ramsenthaler
B14: Bilder: | C14: antishock/Shutterstock | E14: Logo 9, 13, 14, 16, 17, 18
C15: artyway/Shutterstock | E15: Logo 7
C16: Crystal Eye Studio/Shutterstock | E16: Logo 6
C17: moobeer/Shutterstock | E17: Logo 1, 3, 4, 15, 20
C18: NartGraphic/Shutterstock | E18: Logo 11
C19: Nizwa Design/Shutterstock | E19: Logo 12
C20: Sentavio/Shutterstock | E20: Logo 5
C21: Sergey Korkin/Shutterstock | E21: Logo 8
C22: svtdesign/Shutterstock | E22: Logo 10
C23: vectortwins/Shutterstock | E23: Logo 2, 19
B25: Version: | C25: V34 | D25: 2020-06-01
C26: Bitte beachten Sie, dass die Belegkiste auf Microsoft Excel 2016 entwickelt wurde.
B28: © Hölzel Verlag GmbH

Sheet intern_Datenblatt (hidden)
A1: Überschrift für die veränderbaren Zellen: | B1: Verändern Sie hier den Beleg: | E1: RGB Code für Hintergrund der Überschrift | F1: 84-168-255
E2: RGB Code für Schattierung der veränderbaren Felder | F2: 227-233-244
B3: Zurück zur Belegverwaltung
B4: Beleg kopieren
A5: % | B5: NICHT VERWENDEN
A6: Adresse | C6: Listensymbol
A7: Anrede | C7: Farbe (Grau 3)
A8: Artikelbezeichnung
A9: Art.Nr.
A10: Bank
A11: Bedienung
A12: Beförderungsart
A13: Belegnummer
A14: Belegauswahl
A15: Beschreibung
A16: Betrag
A17: Bezeichnung
A18: BIC
A19: Brutto
A20: Datum
A21: Datum und Uhrzeit
A22: E-Mail
A23: EUR
A24: Es bediente Sie
A25: Fax
A26: FB-Nummer
A27: Geschäftsbezeichnung
A28: Logoauswahl
A29: Firma
A30: Gerichtsstand
A31: Gesamt
A32: Gesamtbetrag
A33: IBAN
A34: Kundenname
A35: Kundennummer
A36: Kunden-Nr.
A37: Kassier/in
A38: laufende Nummer
A39: Leistung
A40: Lieferdatum
A41: LKW-Maut
A42: Menge
A43: MwSt | B43: NICHT VERWENDEN
A44: MwSt % | B44: NICHT VERWENDEN
A45: Netto
A46: Netto/EH
A47: Nettobetrag
A48: Nettopreis/Stk.
A49: Nummer des Kassiers
A50: Ort
A51: PLZ und Ort
A52: Postleitzahl
A53: Position
A54: Preis
A55: Preis/EH
A56: Preis/Stk.
A57: Rechnungsdatum
A58: Rechnungsnummer
A59: Re-Datum
A60: Re-Nr.
A61: Sachbearbeiter
A62: Slogan
A63: Summe
A64: Straße
A65: Tageslosung
A66: Telefon
A67: UID-Nummer
A68: UID-Nr.
A69: Umsatzsteuer
A70: Unterschrift
A71: USt | B71: NICHT VERWENDEN
A72: USt %
A73: Website
A74: Währung
A75: Auswahl Zahlungsart
A76: Zahlungskonditionen
A77: Barzahlung | B77: NICHT VERWENDEN
A78: Rabattart
A79: Rabatt Prozentsatz
A80: Text
A81: Stempel
A82: Staat
A83: Hinweis
A84: Einheit

Sheet intern_DropDown (hidden)
A1: USt vollständig | B1: USt Hotel | C1: USt Taxi | D1: USt ohne 10 | E1: LEER | F1: Zahlungsart mit Beleg | G1: Belegauswahl | H1: Tageslosung Auswahl | I1: Belegart ER | J1: Belegart AR | K1: Privat | L1: Zahlungsart BK | M1: USt Ausweis | N1: USt Gasthaus | O1: Berichtsart | P1: TST | Q1: Leistungsart | R1: Belegauswahl Anz. | S1: Bezugsart LV | T1: QR Code Anzeige
A2: 0 | B2: 0 | C2: Personenfahrt inkl. 10 % USt | D2: 20 | E2: LEER | F2: BAR | G2: Eingang | H2: BAR | I2: Rechnung | J2: Rechnung | K2: Private Warenentnahme | L2: Bar | M2: JA | N2: 10 | O2: Tagesbericht | P2: Umweltheizöl ÖKO | Q2: Arbeit | R2: Anzahlung | S2: Angestellte | T2: JA
A3: 10 | B3: 10 | C3: Botenfahrt inkl. 20 % USt | D3: 0 | E3: LEER | F3: MAESTRO | G3: Ausgang | H3: MAESTRO | I3: Lieferschein | J3: Gutschrift | K3: Privatentnahme | L3: Überweisung | M3: NEIN | N3: 20 | O3: Monatsbericht | P3: Heizöl Extraleicht | Q3: Teile | R3: Schlussrechnung | S3: Arbeiter | T3: NEIN
A4: 20 | B4: 20 | E4: LEER | F4: MASTERCARD | H4: MASTERCARD | K4: Privateinlage | P4: Diesel
F5: VISA | H5: VISA | P5: Bio-Diesel
F6: AMERICAN EXPRESS | H6: AMEX | P6: Euro Super 95
F7: AUF ZIEL | P7: Benzin 91
P8: Heizöl leicht

Sheet intern_Zahlen in Text umwandeln (hidden)
B2: Zahlen in Worten
B6: 81369.47 | C6: =IF(ROUND(VALUE(10*(100*B6-INT(100*B6))),0)>0,"maximal 2 Nachkommastellen","") -> 
A8: a | B8: =IF(B6>=1000000000,"nur unter 1 Milliarde",IF(ABS(B6)<1,"null",IF(B6<0,"minus ","")&IF(B13=0,"",C13)&IF(AND(B14=0,B15=0),"",D14)&IF(B16=0,"",C16)&IF(AND(B17=0,B18=0),"",D17)&IF(B19=0,"",C19)&IF(AND(B20=0,B21=0),"",IF(AND(B20=0,B21=1),"eins",D20))))&IF(F19=0,"",IF(A8=1,H19,H20)) -> einundachtzigtausenddreihundertneunundsechzig Komma siebenundvierzig
B10: =SUBSTITUTE(SUBSTITUTE(SUBSTITUTE(SUBSTITUTE(SUBSTITUTE(SUBSTITUTE(SUBSTITUTE(SUBSTITUTE(B6,0,"Null "),1,"Eins "),2,"Zwo "),3,"Drei "),4,"Vier "),5,"Fünf "),6,"Sechs "),7,"Sieben ") -> 8Eins Drei Sechs 9,Vier Sieben
G12: =ABS(100*(MOD(B6,1)-(B6<0))) -> 47
B13: =VALUE(RIGHT(INT(ABS(B6)/100000000))) -> 0 | C13: =IF(B13=1,"ein",IF(B13=2,"zwei",IF(B13=3,"drei",IF(B13=4,"vier",IF(B13=5,"fünf",IF(B13=6,"sechs",IF(B13=7,"sieben",IF(B13=8,"acht","neun"))))))))&"hundert"&IF(AND(B14=0,B15=0),"millionen","") -> neunhundertmillionen | G13: =ROUND(100*(ABS(B6)-INT(ABS(B6))),0) -> 47
B14: =VALUE(RIGHT(INT(ABS(B6)/10000000))) -> 0 | C14: =IF(B14=1,"zehn",IF(B14=2,"zwanzig",IF(B14=3,"dreißig",IF(B14=4,"vierzig",IF(B14=5,"fünfzig",IF(B14=6,"sechzig",IF(B14=7,"siebzig",IF(B14=8,"achtzig","neunzig")))))))) -> neunzig | D14: =IF(AND(B14=0,B15=1),"einemillion",IF(AND(B14=1,B15=1),"elf",IF(AND(B14=1,B15=2),"zwölf",IF(AND(B14=1,B15=6),"sechzehn",IF(AND(B14=1,B15=7),"siebzehn",IF(B15=0,C14,IF(B14=0,C15,C15&IF(B14>1,"und","")&C14))))))&"millionen") -> neunzigmillionen
B15: =VALUE(RIGHT(INT(ABS(B6)/1000000))) -> 0 | C15: =IF(B15=1,"ein",IF(B15=2,"zwei",IF(B15=3,"drei",IF(B15=4,"vier",IF(B15=5,"fünf",IF(B15=6,"sechs",IF(B15=7,"sieben",IF(B15=8,"acht","neun")))))))) -> neun
B16: =VALUE(RIGHT(INT(ABS(B6)/100000))) -> 0 | C16: =IF(B16=1,"ein",IF(B16=2,"zwei",IF(B16=3,"drei",IF(B16=4,"vier",IF(B16=5,"fünf",IF(B16=6,"sechs",IF(B16=7,"sieben",IF(B16=8,"acht","neun"))))))))&"hundert"&IF(AND(B17=0,B18=0),"tausend","") -> neunhundert
B17: =VALUE(RIGHT(INT(ABS(B6)/10000))) -> 8 | C17: =IF(B17=1,"zehn",IF(B17=2,"zwanzig",IF(B17=3,"dreißig",IF(B17=4,"vierzig",IF(B17=5,"fünfzig",IF(B17=6,"sechzig",IF(B17=7,"siebzig",IF(B17=8,"achtzig","neunzig")))))))) -> achtzig | D17: =IF(AND(B17=1,B18=1),"elf",IF(AND(B17=1,B18=2),"zwölf",IF(AND(B17=1,B18=6),"sechzehn",IF(AND(B17=1,B18=7),"siebzehn",IF(B18=0,C17,IF(B17=0,C18,C18&IF(B17>1,"und","")&C17))))))&"tausend" -> einundachtzigtausend
B18: =VALUE(RIGHT(INT(ABS(B6)/1000))) -> 1 | C18: =IF(B18=1,"ein",IF(B18=2,"zwei",IF(B18=3,"drei",IF(B18=4,"vier",IF(B18=5,"fünf",IF(B18=6,"sechs",IF(B18=7,"sieben",IF(B18=8,"acht","neun")))))))) -> ein
B19: =VALUE(RIGHT(INT(ABS(B6)/100))) -> 3 | C19: =IF(B19=1,"ein",IF(B19=2,"zwei",IF(B19=3,"drei",IF(B19=4,"vier",IF(B19=5,"fünf",IF(B19=6,"sechs",IF(B19=7,"sieben",IF(B19=8,"acht","neun"))))))))&"hundert" -> dreihundert | F19: =IF(A8=0,0,ROUND(100*(ABS(B6)-INT(ABS(B6))),0)) -> 47 | H19: =TEXT(F19," 00")&"/100" -> 47/100
B20: =VALUE(RIGHT(INT(ABS(B6)/10))) -> 6 | C20: =IF(B20=1,"zehn",IF(B20=2,"zwanzig",IF(B20=3,"dreißig",IF(B20=4,"vierzig",IF(B20=5,"fünfzig",IF(B20=6,"sechzig",IF(B20=7,"siebzig",IF(B20=8,"achtzig","neunzig")))))))) -> sechzig | D20: =IF(AND(B20=1,B21=1),"elf",IF(AND(B20=1,B21=2),"zwölf",IF(AND(B20=1,B21=6),"sechzehn",IF(AND(B20=1,B21=7),"siebzehn",IF(B21=0,C20,IF(B20=0,C21,C21&IF(B20>1,"und","")&C20)))))) -> neunundsechzig | F20: =VALUE(RIGHT(INT(ABS(F19)/10))) -> 4 | G20: =IF(F20=1,"zehn",IF(F20=2,"zwanzig",IF(F20=3,"dreißig",IF(F20=4,"vierzig",IF(F20=5,"fünfzig",IF(F20=6,"sechzig",IF(F20=7,"siebzig",IF(F20=8,"achtzig","neunzig")))))))) -> vierzig | H20: =" Komma "&IF(F19<10,"null ","")&IF(F19=1,"eins",IF(AND(F20=1,F21=1),"elf",IF(AND(F20=1,F21=2),"zwölf",IF(AND(F20=1,F21=6),"sechzehn",IF(AND(F20=1,F21=7),"siebzehn",IF(F21=0,G20,IF(F20=0,G21,G21&IF(F20>1,"und","")&G20))))))) -> Komma siebenundvierzig
B21: =VALUE(RIGHT(INT(ABS(B6)))) -> 9 | C21: =IF(B21=1,"ein",IF(B21=2,"zwei",IF(B21=3,"drei",IF(B21=4,"vier",IF(B21=5,"fünf",IF(B21=6,"sechs",IF(B21=7,"sieben",IF(B21=8,"acht","neun")))))))) -> neun | F21: =VALUE(RIGHT(INT(ABS(F19)))) -> 7 | G21: =IF(F21=1,"ein",IF(F21=2,"zwei",IF(F21=3,"drei",IF(F21=4,"vier",IF(F21=5,"fünf",IF(F21=6,"sechs",IF(F21=7,"sieben",IF(F21=8,"acht","neun")))))))) -> sieben
B23: =IF(B6<0,"minus ","")&SUBSTITUTE(SUBSTITUTE(SUBSTITUTE(SUBSTITUTE(B10,8,"Acht "),9,"Neun "),",","Komma "),"-","") -> Acht Eins Drei Sechs Neun Komma Vier Sieben

Sheet intern_Tabelle2 (hidden)
A1: Logo01 | G1: =Belegverwaltung!#REF! ->  | H1: Ergebnis für Belegverwaltungsblatt | L1: Musterbeleg blau | P1: Gitternetzlinie ausblenden, damit die Logos keinen Rahmen haben Spalte B und N muss so breit sein wie die Logos
A2: Logo02 | G2: =#REF! ->  | H2: Ergebnis für Steuerberatung | L2: Musterbeleg gelb | P2: Farbauswahl für Musterbeleg
A3: Logo03 | G3: =#REF! ->  | H3: Ergebnis für LS oder ER | L3: Musterbeleg grün | P3: Musterbeleg grün | S3: =P3 -> Musterbeleg grün
A4: Logo04 | G4: =#REF! ->  | H4: Ergebnis für Bank EIN-AUS | L4: Musterbeleg lila
A5: Logo05 | G5: =#REF! ->  | H5: Ergebnis für Zahlungsanweisung | L5: Musterbeleg magenta
A6: Logo06 | G6: =#REF! ->  | H6: Ergebnis für Elektrofachmarkt | L6: Musterbeleg orange
A7: Logo07 | G7: =#REF! ->  | H7: Ergebnis für Möbelhaus | P7: Auswahl QR Code für Belege ohne Auswahl einer Zahlungsart (z.B. Tageslosung, Post) | U7: minimale Größe für gute Lesbarkeit
A8: Logo08 | G8: =#REF! ->  | H8: Ergebnis für Telefon | P8: QR Code 1 | S8: =P8 -> QR Code 1
A9: Logo09 | G9: =#REF! ->  | H9: Ergebnis für WEK oder LS | L9: QR Code 1
A10: Logo10 | G10: =#REF! ->  | H10: Ergebnis für Catering | L10: QR Code 2 | P10: Code 2 ist nur aktuell ein Platzhalter
A11: Logo11 | G11: =#REF! ->  | H11: Ergebnis für Gasthaus
A12: Logo12 | G12: =#REF! ->  | H12: Ergebnis für Hotel-Restaurant
A13: Logo13 | G13: =#REF! ->  | H13: Ergebnis für Büromaterial | L13: ANZEIGE QR Code wenn Barzahlung und bei LS | M13: JA | P13: =#REF! ->  | Q13: Ergebnis Tischlerei | S13: ACHTUNG NICHT IN DER KORREKTEN REIHENFOLGE
A14: Logo14 | G14: =#REF! ->  | H14: Ergebnis für KFZ-Werkstätte | P14: =#REF! ->  | Q14: Ergebnis Transport | S14: ACHTUNG NICHT IN DER KORREKTEN REIHENFOLGE
A15: Logo15 | G15: Logo01 | H15: Ergebnis für Musterbank 3 (BAWAG) | M15: NEIN | P15: =#REF! ->  | Q15: Ergebnis Büromaterial
A16: Logo16 | G16: =#REF! ->  | H16: Ergebnis für Tischlerei | P16: =#REF! ->  | Q16: Ergebnis Restaurant
A17: Logo17 | G17: =#REF! ->  | H17: Ergebnis für Getränkehandel | P17: =+#REF! ->  | Q17: Ergebnis Trafik
A18: Logo18 | G18: =#REF! ->  | H18: Ergebnis für WEK auf Ziel Gastro | P18: =+#REF! ->  | Q18: Ergebnis Tankstelle
A19: Logo19 | G19: ='EDV-Handel'!O17 -> Logo09 | H19: Ergebnis EDV-Handel | P19: =+#REF! ->  | Q19: Ergebnis Hotel
A20: Logo20 | G20: =#REF! ->  | H20: Ergebnis Transport | P20: =+#REF! ->  | Q20: Ergebnis Blumen
A21: kein Logo | G21: =#REF! ->  | H21: Ergebnis Bürobedarf | P21: =+#REF! ->  | Q21: Ergebnis Paper Diskont
G22: ='Kassenbon Rabatt&Skonto'!K16 -> Logo14 | H22: Ergebnis Kassenbon Rabatt&Skonto | P22: =+#REF! ->  | Q22: Ergebnis Elektrofachhandel
G23: =#REF! ->  | H23: Ergebnis ER EU | P23: =+#REF! ->  | Q23: Ergebnis Supermarkt
G24: =#REF! ->  | H24: Ergebnis ER Import | P24: =+#REF! ->  | Q24: Ergebnis Baumarkt
G25: =#REF! ->  | H25: Ergebnis Restaurant FW | P25: =+#REF! ->  | Q25: Ergebnis KFZ-Werkstätte
P26: =#REF! ->  | Q26: Ergebnis Gasthaus
P27: =#REF! ->  | Q27: Ergebnis Maut
P28: =#REF! ->  | Q28: Ergebnis Handyshop
G29: Ab G101 - Logoauswahl-Felder für Tabellenblatt Logoauswahl | P29: ='EDV-Handel'!R34 -> JA | Q29: Ergebnis EDV-Handel
P30: =#REF! ->  | Q30: Ergebnis Heizmaterial
P31: =#REF! ->  | Q31: Ergebnis Taxi Registrierkasse
P32: ='Kassenbon Rabatt&Skonto'!O15 -> JA | Q32: Ergebnis Kassenbon Rabatt & Skonto
P33: =#REF! ->  | Q33: Ergebnis Kassenbon Gutschein
P34: =+#REF! ->  | Q34: Ergebnis Getränkehandel
P35: =#REF! ->  | Q35: Ergebnis WEK Gastro
G99: Logos in aufsteigender Reihenfolge für "Logoauswahl" Blatt
G101: Logo01 | H101: Logoauswahl Logo01
G102: Logo02 | H102: Logoauswahl Logo02
G103: Logo03 | H103: Logoauswahl Logo03
G104: Logo04 | H104: Logoauswahl Logo04
G105: Logo05 | H105: Logoauswahl Logo05
G106: Logo06 | H106: Logoauswahl Logo06
G107: Logo07 | H107: Logoauswahl Logo07
G108: Logo08 | H108: Logoauswahl Logo08
G109: Logo09 | H109: Logoauswahl Logo09
G110: Logo10 | H110: Logoauswahl Logo10
G111: Logo11 | H111: Logoauswahl Logo11
G112: Logo12 | H112: Logoauswahl Logo12
G113: Logo13 | H113: Logoauswahl Logo13
G114: Logo14 | H114: Logoauswahl Logo14
G115: Logo15 | H115: Logoauswahl Logo15
G116: Logo16 | H116: Logoauswahl Logo16
G117: Logo17 | H117: Logoauswahl Logo17
G118: Logo18 | H118: Logoauswahl Logo18
G119: Logo19 | H119: Logoauswahl Logo19
G120: Logo20 | H120: Logoauswahl Logo20

Sheet intern_BM_HAKLE2 (hidden)
A4: Blätternamen | B4: Links
A5: Belegverwaltung
A6: Kontoauszug einzeilig MB Alpha | B6: Kontoauszug einzeilig Musterbank Alpha
A7: EDV-Handel | B7: EDV-Handel
A8: EDV-Handel Rabatt | B8: EDV-Handel Rabatt
A9: AR oder Rabatt | B9: Ausgangsrechnung oder Rabattgutschrift
A10: TL+Kontoauszug MB Beta | B10: Tageslosung und Kontoauszug Musterbank Beta
A11: AR. | B11: Ausgangsrechnung
A12: Kontoauszug BKS | B12: Kontoauszug & Zahlungseingang BKS Bank
A13: Kassenbon Rabatt&Skonto | B13: Kassenbon mit Rabatt & Skonto
A14: Logoübersicht | B14: Logoübersicht
A15: Hilfe | B15: Hilfe
A16: Kontakt und Impressum | B16: Kontakt & Impressum

Sheet intern_Belegexport (hidden)
